lending/lending_fUSD_20250130
["ID","MTS","AMOUNT","RATE_DAILY","PERIOD"]
[350997964,1738277434965,-500.0,0.00019178,2]
[350997965,1738277434976,-500.0,0.00019178,2]
[350997966,1738277434987,-500.0,0.00019178,2]
[350997967,1738277434997,-500.0,0.00019178,2]
[350997968,1738277435007,-151.0,0.00019178,2]
[350997969,1738277435016,-500.0,0.00019178,2]
[350997970,1738277435026,-500.0,0.00019178,2]
[350997971,1738277435036,-500.0,0.00019178,2]
[350997972,1738277435046,-500.0,0.00019178,2]
[350997973,1738277435056,-500.0,0.00019178,2]
[350997974,1738277435066,-500.0,0.00019178,2]
[350997975,1738277435077,-502.86962572,0.00019178,2]
[350997976,1738277435087,-501.80365181,0.00019178,2]
[350997977,1738277435096,-500.0,0.00019178,2]
[350997978,1738277435106,-500.0,0.00019178,2]
[350997979,1738277435116,-501.94612645,0.00019178,2]
[350997980,1738277435127,-500.0,0.00019178,2]
[350997981,1738277435137,-200.0,0.00019178,2]
[350997982,1738277435147,-500.0,0.00019178,2]
[350997983,1738277435157,-500.0,0.00019178,2]
[350997984,1738277435167,-5000.0,0.00019178,2]
[350997985,1738277435178,-500.0,0.00019178,2]
[350997986,1738277435188,-1007.32,0.00019178,2]
[350997987,1738277435199,-504.2439294,0.00019178,2]
[350997988,1738277435209,-382.02733859,0.00019178,2]
[350997989,1738277435219,-907.21,0.00019178,2]
[350997990,1738277435229,-506.85720202,0.00019178,2]
[350997991,1738277435238,-500.0,0.00019178,2]
[350997992,1738277435248,-500.0,0.00019178,2]
[350997993,1738277435258,-500.0,0.00019178,2]
[350997994,1738277435268,-843.35,0.00019178,2]
[350997995,1738277435278,-509.51177344,0.00019178,2]
[350997996,1738277435288,-1303.11,0.00019178,2]
[350997997,1738277435299,-500.0,0.00019178,2]
[350997998,1738277435308,-500.0,0.00019178,2]
[350997999,1738277435319,-500.0,0.00019178,2]
[350998000,1738277435329,-295.307763,0.00019178,2]
[350998001,1738277435341,-295.307763,0.00019178,2]
[350998002,1738277435351,-295.307763,0.00019178,2]
[350998003,1738277435360,-1158.3,0.00019178,2]
[350998004,1738277435370,-295.307763,0.00019178,2]
[350998005,1738277435379,-295.307763,0.00019178,2]
[350998006,1738277435389,-295.307763,0.00019178,2]
[350998007,1738277435400,-786.32,0.00019178,2]
[350998008,1738277435410,-500.0,0.00019178,2]
[350998009,1738277435675,-500.0,0.00019178,2]
[350998010,1738277435686,-2351.15,0.00019178,2]
[350998011,1738277435695,-500.0,0.00019178,2]
[350998012,1738277435705,-2605.33,0.00019178,2]
[350998013,1738277435714,-790.64,0.00019178,2]
[350998014,1738277435724,-500.0,0.00019178,2]
[350998015,1738277435733,-500.0,0.00019178,2]
[350998016,1738277435743,-711.4,0.00019178,2]
[350998017,1738277435753,-1278.25,0.00019178,2]
[350998018,1738277435764,-500.0,0.00019178,2]
[350998019,1738277435775,-500.0,0.00019178,2]
[350998020,1738277435785,-500.0,0.00019178,2]
[350998021,1738277435794,-774.71,0.00019178,2]
[350998022,1738277435804,-533.49,0.00019178,2]
[350998023,1738277435813,-1789.14,0.00019178,2]
[350998024,1738277435823,-975.32,0.00019178,2]
[350998025,1738277435832,-2251.35,0.00019178,2]
[350998026,1738277435844,-500.0,0.00019178,2]
[350998027,1738277435854,-500.0,0.00019178,2]
[350998028,1738277435863,-762.02,0.00019178,2]
[350998029,1738277435873,-500.0,0.00019178,2]
[350998030,1738277435883,-1091.63,0.00019178,2]
[350998031,1738277435892,-350.68766523,0.00019178,2]
[350998032,1738277435901,-1345.63,0.00019178,2]
[350998033,1738277435911,-1382.44,0.00019178,2]
[350998034,1738277435921,-500.0,0.00019178,2]
[350998035,1738277435930,-1709.13,0.00019178,2]
[350998036,1738277435939,-500.0,0.00019178,2]
[350998037,1738277435950,-500.0,0.00019178,2]
[350998038,1738277435960,-2567.9,0.00019178,2]
[350998039,1738277435971,-500.0,0.00019178,2]
[350998040,1738277435983,-507.3724482,0.00019178,2]
[350998041,1738277435993,-500.0,0.00019178,2]
[350998042,1738277436003,-842.67,0.00019178,2]
[350998043,1738277436013,-500.0,0.00019178,2]
[350998044,1738277436023,-515.34938985,0.00019178,2]
[350998045,1738277436033,-1044.69,0.00019178,2]
[350998046,1738277436043,-500.0,0.00019178,2]
[350998047,1738277436054,-2082.81,0.00019178,2]
[350998048,1738277436064,-500.0,0.00019178,2]
[350998049,1738277436074,-1532.4,0.00019178,2]
[350998050,1738277436083,-898.04,0.00019178,2]
[350998051,1738277436095,-287.03288053,0.00019178,2]
[350998052,1738277436105,-500.0,0.00019178,2]
[350998053,1738277436114,-500.0,0.00019178,2]
[350998054,1738277436123,-500.0,0.00019178,2]
[350998055,1738277436133,-500.0,0.00019178,2]
[350998056,1738277436143,-500.0,0.00019178,2]
[350998057,1738277436153,-720.17,0.00019178,2]
[350998058,1738277436163,-500.0,0.00019178,2]
[350998059,1738277436172,-2305.1,0.00019178,2]
[350998060,1738277436182,-500.0,0.00019178,2]
[350998061,1738277436191,-276.38316871,0.00019178,2]
[350998062,1738277436200,-500.0,0.00019178,2]
[350998063,1738277436210,-501.48985608,0.00019178,2]
[350998064,1738277436219,-500.0,0.00019178,2]
[350998065,1738277436229,-500.0,0.00019178,2]
[350998066,1738277436238,-500.0,0.00019178,2]
[350998067,1738277436248,-500.0,0.00019178,2]
[350998068,1738277436257,-800.04,0.00019178,2]
[350998069,1738277436267,-500.0,0.00019178,2]
[350998070,1738277436276,-500.0,0.00019178,2]
[350998071,1738277436286,-500.0,0.00019178,2]
[350998072,1738277436295,-1535.04,0.00019178,2]
[350998073,1738277436305,-500.0,0.00019178,2]
[350998074,1738277436315,-726.69,0.00019178,2]
[350998075,1738277436324,-500.0,0.00019178,2]
[350998076,1738277436333,-500.0,0.00019178,2]
[350998077,1738277436345,-500.0,0.00019178,2]
[350998078,1738277436354,-500.0,0.00019178,2]
[350998079,1738277436363,-500.0,0.00019178,2]
[350998080,1738277436373,-500.0,0.00019178,2]
[350998081,1738277436382,-500.0,0.00019178,2]
[350998082,1738277436392,-1271.87,0.00019178,2]
[350998083,1738277436401,-2448.03,0.00019178,2]
[350998084,1738277436412,-500.0,0.00019178,2]
[350998085,1738277436422,-507.92701954,0.00019178,2]
[350998086,1738277436432,-500.0,0.00019178,2]
[350998087,1738277436441,-1322.12,0.00019178,2]
[350998088,1738277436451,-500.0,0.00019178,2]
[350998089,1738277436460,-500.0,0.00019178,2]
[350998090,1738277436470,-500.0,0.00019178,2]
[350998091,1738277436479,-847.17,0.00019178,2]
[350998092,1738277436488,-246.44983752,0.00019178,2]
[350998093,1738277436498,-500.0,0.00019178,2]
[350998094,1738277436508,-1129.69,0.00019178,2]
[350998095,1738277436517,-151.0,0.00019178,2]
[350998096,1738277436527,-500.0,0.00019178,2]
[350998097,1738277436537,-1006.85,0.00019178,2]
[350998098,1738277436546,-500.0,0.00019178,2]
[350998099,1738277436556,-949.9,0.00019178,2]
[350998100,1738277436566,-500.0,0.00019178,2]
[350998101,1738277436576,-500.0,0.00019178,2]
[350998102,1738277436585,-500.0,0.00019178,2]
[350998103,1738277436596,-500.0,0.00019178,2]
[350998104,1738277436606,-1094.66,0.00019178,2]
[350998105,1738277436615,-500.0,0.00019178,2]
[350998106,1738277436625,-500.0,0.00019178,2]
[350998107,1738277436634,-989.53,0.00019178,2]
[350998108,1738277436644,-500.0,0.00019178,2]
[350998109,1738277436653,-500.0,0.00019178,2]
[350998110,1738277436662,-519.46,0.00019178,2]
[350998111,1738277436672,-500.0,0.00019178,2]
[350998112,1738277436682,-500.0,0.00019178,2]
[350998113,1738277436691,-500.0,0.00019178,2]
[350998114,1738277436701,-500.0,0.00019178,2]
[350998115,1738277436711,-1100.79,0.00019178,2]
[350998116,1738277436721,-313.72199365,0.00019178,2]
[350998117,1738277436730,-500.0,0.00019178,2]
[350998118,1738277436741,-500.0,0.00019178,2]
[350998119,1738277436751,-1156.34,0.00019178,2]
[350998120,1738277436761,-500.0,0.00019178,2]
[350998121,1738277436770,-3211.18,0.00019178,2]
[350998122,1738277436780,-151.0,0.00019178,2]
[350998123,1738277436789,-151.0,0.00019178,2]
[350998124,1738277436799,-710.45,0.00019178,2]
[350998125,1738277436808,-151.0,0.00019178,2]
[350998126,1738277436818,-500.0,0.00019178,2]
[350998127,1738277436828,-500.0,0.00019178,2]
[350998128,1738277436839,-1161.68,0.00019178,2]
[350998129,1738277436848,-500.0,0.00019178,2]
[350998130,1738277436857,-1182.27,0.00019178,2]
[350998131,1738277436867,-500.0,0.00019178,2]
[350998132,1738277436876,-500.0,0.00019178,2]
[350998133,1738277436886,-1360.29,0.00019178,2]
[350998134,1738277436896,-1119.25,0.00019178,2]
[350998135,1738277436907,-500.0,0.00019178,2]
[350998136,1738277436917,-500.0,0.00019178,2]
[350998137,1738277436926,-500.0,0.00019178,2]
[350998138,1738277436936,-919.09,0.00019178,2]
[350998139,1738277436946,-500.0,0.00019178,2]
[350998140,1738277436956,-508.76325058,0.00019178,2]
[350998141,1738277436966,-505.8,0.00019178,2]
[350998142,1738277436981,-519.26311484,0.00019178,2]
[350998143,1738277436991,-516.21243224,0.00019178,2]
[350998144,1738277437000,-500.0,0.00019178,2]
[350998145,1738277437009,-821.16,0.00019178,2]
[350998146,1738277437019,-500.0,0.00019178,2]
[350998147,1738277437028,-1005.57,0.00019178,2]
[350998148,1738277437038,-325.52804445,0.00019178,2]
[350998149,1738277437047,-500.0,0.00019178,2]
[350998150,1738277437057,-500.0,0.00019178,2]
[350998151,1738277437067,-993.38,0.00019178,2]
[350998152,1738277437077,-516.75959952,0.00019178,2]
[350998153,1738277437087,-500.0,0.00019178,2]
[350998154,1738277437096,-501.26255814,0.00019178,2]
[350998155,1738277437106,-669.8,0.00019178,2]
[350998156,1738277437116,-1176.03,0.00019178,2]
[350998157,1738277437125,-500.0,0.00019178,2]
[350998158,1738277437135,-871.1,0.00019178,2]
[350998159,1738277437145,-506.52,0.00019178,2]
[350998160,1738277437154,-577.46,0.00019178,2]
[350998161,1738277437164,-1637.54,0.00019178,2]
[350998162,1738277437174,-503.6,0.00019178,2]
[350998163,1738277437184,-697.09,0.00019178,2]
[350998164,1738277437194,-500.0,0.00019178,2]
[350998165,1738277437204,-1274.57,0.00019178,2]
[350998166,1738277437214,-500.0,0.00019178,2]
[350998167,1738277437223,-500.0,0.00019178,2]
[350998168,1738277437232,-585.94,0.00019178,2]
[350998169,1738277437242,-873.64,0.00019178,2]
[350998170,1738277437251,-151.0,0.00019178,2]
[350998171,1738277437261,-151.0,0.00019178,2]
[350998172,1738277437270,-151.0,0.00019178,2]
[350998173,1738277437280,-500.0,0.00019178,2]
[350998174,1738277437290,-151.0,0.00019178,2]
[350998175,1738277437299,-905.61,0.00019178,2]
[350998176,1738277437309,-320.30453579,0.00019178,2]
[350998177,1738277437319,-1465.86,0.00019178,2]
[350998178,1738277437328,-500.0,0.00019178,2]
[350998179,1738277437338,-500.0,0.00019178,2]
[350998180,1738277437348,-500.0,0.00019178,2]
[350998181,1738277437357,-500.0,0.00019178,2]
[350998182,1738277437367,-1099.89,0.00019178,2]
[350998183,1738277437375,-608.61,0.00019178,2]
[350998184,1738277437385,-500.0,0.00019178,2]
[350998185,1738277437395,-1953.76,0.00019178,2]
[350998186,1738277437406,-500.0,0.00019178,2]
[350998187,1738277437415,-683.15,0.00019178,2]
[350998188,1738277437425,-500.0,0.00019178,2]
[350998189,1738277437435,-500.0,0.00019178,2]
[350998190,1738277437445,-500.0,0.00019178,2]
[350998191,1738277437454,-495.75148817,0.00019178,2]
[350998192,1738277437464,-500.0,0.00019178,2]
[350998193,1738277437474,-500.0,0.00019178,2]
[350998194,1738277437484,-592.51,0.00019178,2]
[350998195,1738277437493,-1000.98,0.00019178,2]
[350998196,1738277437502,-500.0,0.00019178,2]
[350998197,1738277437512,-500.0,0.00019178,2]
[350998198,1738277437523,-1669.69,0.00019178,2]
[350998199,1738277437533,-500.0,0.00019178,2]
[350998200,1738277437542,-500.0,0.00019178,2]
[350998201,1738277437551,-500.0,0.00019178,2]
[350998202,1738277437560,-2422.15,0.00019178,2]
[350998203,1738277437571,-500.0,0.00019178,2]
[350998204,1738277437580,-500.0,0.00019178,2]
[350998205,1738277437589,-596.84,0.00019178,2]
[350998206,1738277437599,-975.14,0.00019178,2]
[350998207,1738277437608,-1148.48,0.00019178,2]
[350998208,1738277437617,-503.33108224,0.00019178,2]
[350998209,1738277437626,-500.0,0.00019178,2]
[350998210,1738277437637,-500.0,0.00019178,2]
[350998211,1738277437646,-1577.57,0.00019178,2]
[350998212,1738277437655,-500.0,0.00019178,2]
[350998213,1738277437665,-500.0,0.00019178,2]
[350998214,1738277437674,-513.81153518,0.00019178,2]
[350998215,1738277437684,-500.0,0.00019178,2]
[350998216,1738277437694,-505.26006055,0.00019178,2]
[350998217,1738277437703,-501.23800936,0.00019178,2]
[350998218,1738277437712,-500.0,0.00019178,2]
[350998219,1738277437721,-910.63,0.00019178,2]
[350998220,1738277437731,-500.0,0.00019178,2]
[350998221,1738277437740,-636.92,0.00019178,2]
[350998222,1738277437749,-1143.92,0.00019178,2]
[350998223,1738277437759,-500.0,0.00019178,2]
[350998224,1738277437769,-500.0,0.00019178,2]
[350998225,1738277437778,-500.0,0.00019178,2]
[350998226,1738277437788,-500.0,0.00019178,2]
[350998227,1738277437799,-2866.99,0.00019178,2]
[350998228,1738277437810,-2848.65,0.00019178,2]
[350998229,1738277437820,-1728.52,0.00019178,2]
[350998230,1738277437829,-500.0,0.00019178,2]
[350998231,1738277437839,-1000.76,0.00019178,2]
[350998232,1738277437848,-425.10339728,0.00019178,2]
[350998233,1738277437857,-1291.08,0.00019178,2]
[350998234,1738277437867,-500.0,0.00019178,2]
[350998235,1738277437876,-991.28,0.00019178,2]
[350998236,1738277437885,-1118.66,0.00019178,2]
[350998237,1738277437894,-500.0,0.00019178,2]
[350998238,1738277437904,-500.0,0.00019178,2]
[350998239,1738277437913,-294.23086336,0.00019178,2]
[350998240,1738277437922,-990.43,0.00019178,2]
[350998242,1738277437931,-631.96,0.00019178,2]
[350998244,1738277437942,-507.58740826,0.00019178,2]
[350998245,1738277437952,-631.96,0.00019178,2]
[350998246,1738277437961,-500.0,0.00019178,2]
[350998247,1738277437971,-631.96,0.00019178,2]
[350998248,1738277437983,-631.96,0.00019178,2]
[350998249,1738277437992,-631.96,0.00019178,2]
[350998250,1738277438001,-500.0,0.00019178,2]
[350998252,1738277438011,-631.96,0.00019178,2]
[350998253,1738277438021,-500.0,0.00019178,2]
[350998255,1738277438030,-631.96,0.00019178,2]
[350998256,1738277438039,-631.96,0.00019178,2]
[350998257,1738277438048,-631.96,0.00019178,2]
[350998258,1738277438059,-631.96,0.00019178,2]
[350998259,1738277438067,-213.90203874,0.00019178,2]
[350998260,1738277438076,-631.96,0.00019178,2]
[350998261,1738277438085,-631.96,0.00019178,2]
[350998262,1738277438096,-631.96,0.00019178,2]
[350998263,1738277438105,-631.96,0.00019178,2]
[350998264,1738277438114,-151.0,0.00019178,2]
[350998265,1738277438123,-500.0,0.00019178,2]
[350998266,1738277438132,-151.0,0.00019178,2]
[350998267,1738277438141,-151.0,0.00019178,2]
[350998268,1738277438150,-500.0,0.00019178,2]
[350998269,1738277438159,-151.0,0.00019178,2]
[350998270,1738277438168,-151.0,0.00019178,2]
[350998271,1738277438178,-151.0,0.00019178,2]
[350998272,1738277438187,-508.74,0.00019178,2]
[350998273,1738277438197,-500.0,0.00019178,2]
[350998274,1738277438207,-500.0,0.00019178,2]
[350998275,1738277438216,-500.0,0.00019178,2]
[350998276,1738277438225,-758.42,0.00019178,2]
[350998277,1738277438235,-500.0,0.00019178,2]
[350998278,1738277438246,-609.98,0.00019178,2]
[350998279,1738277438256,-564.6667527,0.00019178,2]
[350998280,1738277438265,-500.0,0.00019178,2]
[350998281,1738277438274,-516.08869322,0.00019178,2]
[350998282,1738277438284,-861.12,0.00019178,2]
[350998283,1738277438295,-502.5839449,0.00019178,2]
[350998284,1738277438305,-500.0,0.00019178,2]
[350998285,1738277438315,-1589.87,0.00019178,2]
[350998286,1738277438325,-506.73765948,0.00019178,2]
[350998287,1738277438334,-500.0,0.00019178,2]
[350998288,1738277438345,-500.0,0.00019178,2]
[350998289,1738277438354,-1069.4,0.00019178,2]
[350998290,1738277438364,-886.31,0.00019178,2]
[350998291,1738277438374,-500.0,0.00019178,2]
[350998292,1738277438383,-1307.35,0.00019178,2]
[350998293,1738277438393,-500.0,0.00019178,2]
[350998294,1738277438403,-500.0,0.00019178,2]
[350998295,1738277438413,-1459.65,0.00019178,2]
[350998296,1738277438424,-500.0,0.00019178,2]
[350998297,1738277438434,-1915.93,0.00019178,2]
[350998298,1738277438443,-500.0,0.00019178,2]
[350998299,1738277438455,-598.88,0.00019178,2]
[350998300,1738277438465,-544.71,0.00019178,2]
[350998301,1738277438477,-532.03,0.00019178,2]
[350998302,1738277438486,-500.0,0.00019178,2]
[350998303,1738277438497,-992.32,0.00019178,2]
[350998304,1738277438508,-500.0,0.00019178,2]
[350998305,1738277438517,-858.14,0.00019178,2]
[350998307,1738277438527,-722.64,0.00019178,2]
[350998309,1738277438536,-968.68,0.00019178,2]
[350998311,1738277438545,-151.327597,0.00019178,2]
[350998313,1738277438554,-501.58991844,0.00019178,2]
[350998315,1738277438563,-151.327597,0.00019178,2]
[350998317,1738277438573,-151.327597,0.00019178,2]
[350998319,1738277438582,-200.0,0.00019178,2]
[350998320,1738277438592,-500.0,0.00019178,2]
[350998321,1738277438601,-151.327597,0.00019178,2]
[350998322,1738277438610,-151.327597,0.00019178,2]
[350998323,1738277438619,-151.327597,0.00019178,2]
[350998324,1738277438628,-1184.28,0.00019178,2]
[350998325,1738277438637,-1559.95,0.00019178,2]
[350998326,1738277438647,-500.0,0.00019178,2]
[350998327,1738277438656,-2454.62,0.00019178,2]
[350998328,1738277438666,-500.0,0.00019178,2]
[350998329,1738277438675,-500.0,0.00019178,2]
[350998330,1738277438683,-500.0,0.00019178,2]
[350998331,1738277438692,-500.0,0.00019178,2]
[350998332,1738277438702,-500.0,0.00019178,2]
[350998333,1738277438711,-523.61503537,0.00019178,2]
[350998336,1738277438721,-796.46,0.00019178,2]
[350998340,1738277438730,-500.0,0.00019178,2]
[350998343,1738277438739,-500.0,0.00019178,2]
[350998345,1738277438748,-1490.06,0.00019178,2]
[350998348,1738277438757,-500.0,0.00019178,2]
[350998351,1738277438766,-506.93517845,0.00019178,2]
[350998353,1738277438776,-2332.88,0.00019178,2]
[350998355,1738277438785,-503.00850523,0.00019178,2]
[350998357,1738277438794,-509.7,0.00019178,2]
[350998359,1738277438803,-500.0,0.00019178,2]
[350998361,1738277438812,-500.0,0.00019178,2]
[350998363,1738277438822,-500.0,0.00019178,2]
[350998365,1738277438831,-3009.95,0.00019178,2]
[350998367,1738277438841,-571.33,0.00019178,2]
[350998369,1738277438850,-500.0,0.00019178,2]
[350998371,1738277438860,-500.0,0.00019178,2]
[350998373,1738277438870,-500.0,0.00019178,2]
[350998375,1738277438879,-500.0,0.00019178,2]
[350998377,1738277438889,-1478.51,0.00019178,2]
[350998379,1738277438899,-500.0,0.00019178,2]
[350998381,1738277438908,-500.0,0.00019178,2]
[350998383,1738277438918,-500.0,0.00019178,2]
[350998385,1738277438928,-772.36,0.00019178,2]
[350998386,1738277438937,-500.0,0.00019178,2]
[350998388,1738277438947,-1128.99,0.00019178,2]
[350998390,1738277438956,-500.0,0.00019178,2]
[350998392,1738277438965,-780.44,0.00019178,2]
[350998394,1738277438977,-526.09,0.00019178,2]
[350998396,1738277438986,-151.0,0.00019178,2]
[350998398,1738277438995,-151.0,0.00019178,2]
[350998400,1738277439004,-500.0,0.00019178,2]
[350998402,1738277439013,-500.0,0.00019178,2]
[350998404,1738277439024,-502.34681559,0.00019178,2]
[350998406,1738277439033,-1656.58,0.00019178,2]
[350998408,1738277439042,-2360.79,0.00019178,2]
[350998410,1738277439052,-500.0,0.00019178,2]
[350998412,1738277439061,-500.0,0.00019178,2]
[350998414,1738277439071,-515.1,0.00019178,2]
[350998416,1738277439080,-2892.34,0.00019178,2]
[350998419,1738277439090,-151.0,0.00019178,2]
[350998421,1738277439099,-500.0,0.00019178,2]
[350998423,1738277439109,-241.01912,0.00019178,2]
[350998424,1738277439118,-500.0,0.00019178,2]
[350998425,1738277439128,-500.0,0.00019178,2]
[350998426,1738277439137,-500.0,0.00019178,2]
[350998427,1738277439147,-1407.23,0.00019178,2]
[350998428,1738277439156,-196.007966,0.00019178,2]
[350998429,1738277439165,-500.0,0.00019178,2]
[350998430,1738277439178,-196.007966,0.00019178,2]
[350998431,1738277439187,-1475.7,0.00019178,2]
[350998432,1738277439197,-196.007966,0.00019178,2]
[350998433,1738277439206,-588.21,0.00019178,2]
[350998434,1738277439215,-500.0,0.00019178,2]
[350998435,1738277439225,-500.0,0.00019178,2]
[350998436,1738277439234,-500.0,0.00019178,2]
[350998437,1738277439243,-2060.93,0.00019178,2]
[350998438,1738277439252,-500.0,0.00019178,2]
[350998439,1738277439264,-500.0,0.00019178,2]
[350998440,1738277439274,-747.22,0.00019178,2]
[350998441,1738277439283,-502.90988778,0.00019178,2]
[350998442,1738277439294,-500.0,0.00019178,2]
[350998443,1738277439303,-2263.36,0.00019178,2]
[350998444,1738277439313,-516.09805349,0.00019178,2]
[350998445,1738277439323,-500.0,0.00019178,2]
[350998446,1738277439333,-2004.31,0.00019178,2]
[350998447,1738277439344,-500.0,0.00019178,2]
[350998448,1738277439353,-500.0,0.00019178,2]
[350998449,1738277439362,-250.92775964,0.00019178,2]
[350998450,1738277439371,-1070.91,0.00019178,2]
[350998451,1738277439380,-3000.0,0.00019178,2]
[350998452,1738277439390,-500.0,0.00019178,2]
[350998453,1738277439401,-745.33,0.00019178,2]
[350998454,1738277439411,-500.0,0.00019178,2]
[350998455,1738277439421,-730.99,0.00019178,2]
[350998456,1738277439641,-699.31,0.00019178,2]
[350998457,1738277439652,-623.86,0.00019178,2]
[350998458,1738277439662,-799.49,0.00019178,2]
[350998459,1738277439671,-1482.59,0.00019178,2]
[350998460,1738277439680,-606.77241528,0.00019178,2]
[350998461,1738277439690,-500.0,0.00019178,2]
[350998462,1738277439701,-500.0,0.00019178,2]
[350998463,1738277439710,-516.02,0.00019178,2]
[350998464,1738277439719,-1414.48,0.00019178,2]
[350998465,1738277439728,-1947.91,0.00019178,2]
[350998466,1738277439737,-1817.86,0.00019178,2]
[350998467,1738277439746,-497.51605937,0.00019178,2]
[350998468,1738277439756,-525.05,0.00019178,2]
[350998469,1738277439766,-500.0,0.00019178,2]
[350998470,1738277439776,-4305.07,0.00019178,2]
[350998471,1738277439785,-500.0,0.00019178,2]
[350998472,1738277439795,-214.06223853,0.00019178,2]
[350998473,1738277439806,-500.0,0.00019178,2]
[350998474,1738277439816,-501.37186095,0.00019178,2]
[350998475,1738277439825,-1424.25,0.00019178,2]
[350998476,1738277439834,-500.0,0.00019178,2]
[350998477,1738277439845,-1617.19,0.00019178,2]
[350998478,1738277439854,-6393.64,0.00019178,2]
[350998479,1738277439864,-1261.81,0.00019178,2]
[350998480,1738277439874,-500.0,0.00019178,2]
[350998481,1738277439884,-500.0,0.00019178,2]
[350998482,1738277439894,-2508.0,0.00019178,2]
[350998483,1738277439904,-3553.62,0.00019178,2]
[350998484,1738277439914,-500.0,0.00019178,2]
[350998485,1738277439925,-319.47469721,0.00019178,2]
[350998486,1738277439935,-500.0,0.00019178,2]
[350998487,1738277439946,-1265.31,0.00019178,2]
[350998488,1738277439957,-500.0,0.00019178,2]
[350998489,1738277439966,-500.0,0.00019178,2]
[350998490,1738277439979,-1026.06,0.00019178,2]
[350998491,1738277439988,-500.0,0.00019178,2]
[350998492,1738277439998,-500.0,0.00019178,2]
[350998493,1738277440007,-500.0,0.00019178,2]
[350998494,1738277440018,-503.93658968,0.00019178,2]
[350998495,1738277440027,-693.98,0.00019178,2]
[350998496,1738277440038,-500.0,0.00019178,2]
[350998497,1738277440047,-956.31,0.00019178,2]
[350998499,1738277440059,-501.06106823,0.00019178,2]
[350998500,1738277440069,-500.0,0.00019178,2]
[350998502,1738277440078,-2331.98,0.00019178,2]
[350998505,1738277440088,-1693.15,0.00019178,2]
[350998506,1738277440098,-500.0,0.00019178,2]
[350998507,1738277440108,-500.0,0.00019178,2]
[350998509,1738277440119,-3234.57,0.00019178,2]
[350998511,1738277440128,-151.0,0.00019178,2]
[350998512,1738277440138,-10665.21,0.00019178,2]
[350998513,1738277440148,-901.33,0.00019178,2]
[350998514,1738277440158,-204.391238,0.00019178,2]
[350998515,1738277440167,-500.0,0.00019178,2]
[350998516,1738277440177,-2167.17,0.00019178,2]
[350998517,1738277440186,-500.0,0.00019178,2]
[350998518,1738277440196,-1959.2,0.00019178,2]
[350998519,1738277440206,-500.0,0.00019178,2]
[350998520,1738277440217,-500.0,0.00019178,2]
[350998521,1738277440227,-2953.1,0.00019178,2]
[350998522,1738277440237,-3709.62,0.00019178,2]
[350998523,1738277440246,-500.0,0.00019178,2]
[350998524,1738277440256,-1841.13,0.00019178,2]
[350998525,1738277440266,-500.0,0.00019178,2]
[350998526,1738277440276,-290.0173526,0.00019178,2]
[350998527,1738277440286,-1774.0,0.00019178,2]
[350998528,1738277440295,-500.0,0.00019178,2]